[Event "GER-ch Blitz 2019"]
[Site "Magdeburg"]
[Date "2019.05.25"]
[Round "29.6"]
[White "Svane, Frederik"]
[Black "Schulz, Karsten"]
[Result "1-0"]
[ECO "B06"]
[WhiteElo "2342"]
[BlackElo "2227"]
[Annotator "NA"]
[PlyCount "67"]
[EventDate "2019.05.25"]
[EventType "tourn"]
[EventCountry "GER"]
[Tiebreak "Number of wins+Number of black wins"]
[SourceTitle "playchess.com"]
[Source "ChessBase"]
[SourceQuality "1"]
[TimeControl "180+2"]

1. e4 {[%emt 0:00:00]} g6 {[%emt 0:00:00]} 2. d4 {[%emt 0:00:05]} Bg7 {[%emt 0:
00:00]} 3. Nc3 {[%emt 0:00:02]} d6 {[%emt 0:00:00]} 4. g3 {[%emt 0:00:02]} Nf6
{[%emt 0:00:03]} 5. Bg2 {[%emt 0:00:01]} O-O {[%emt 0:00:01]} 6. Nge2 {[%emt 0:
00:01]} e5 {[%emt 0:00:01]} 7. O-O {[%emt 0:00:02]} Nc6 {[%emt 0:00:01]} 8.
dxe5 {[%emt 0:00:37]} Nxe5 {[%emt 0:00:05]} 9. h3 {[%emt 0:00:06]} Re8 {
[%emt 0:00:10]} 10. f4 {[%emt 0:00:07]} Ned7 {[%emt 0:00:00]} 11. Be3 {[%emt 0:
00:06]} a6 {[%emt 0:00:03]} 12. Qd2 {[%emt 0:00:03]} Rb8 {[%emt 0:00:32]} 13.
Ba7 {[%emt 0:00:03]} Ra8 {[%emt 0:00:01]} 14. Be3 {[%emt 0:00:01]} Rb8 {
[%emt 0:00:01]} 15. Ba7 {[%emt 0:00:07]} Ra8 {[%emt 0:00:02]} 16. Bf2 {[%emt 0:
00:02]} Rb8 {[%emt 0:00:01]} 17. Nd4 {[%emt 0:00:10]} Nc5 {[%emt 0:00:07]} 18.
Rae1 {[%emt 0:00:03]} Bd7 {[%emt 0:00:06]} 19. e5 {[%emt 0:00:19]} dxe5 {
[%emt 0:00:13]} 20. fxe5 {[%emt 0:00:05]} Nh5 {[%emt 0:00:02]} 21. g4 {[%emt 0:
00:02]} Rxe5 {[%emt 0:00:18]} 22. Rxe5 {[%emt 0:00:08]} Bxe5 {[%emt 0:00:02]}
23. gxh5 {[%emt 0:00:02]} Ne6 {[%emt 0:00:31]} 24. Nxe6 {[%emt 0:00:06]} Bxe6 {
[%emt 0:00:01]} 25. Qxd8+ Rxd8 26. hxg6 {[%emt 0:00:04]} hxg6 {[%emt 0:00:01]}
27. Rd1 {[%emt 0:00:05]} Rb8 {[%emt 0:00:01]} 28. Bd4 {[%emt 0:00:06]} Bxd4+ {
[%emt 0:00:12]} 29. Rxd4 {[%emt 0:00:02]} b5 {[%emt 0:00:01]} 30. Kf2 {[%emt 0:
00:02]} c5 {[%emt 0:00:04]} 31. Rd6 {[%emt 0:00:02]} a5 {[%emt 0:00:07]} 32.
Bd5 {[%emt 0:00:14]} Bxh3 {[%emt 0:00:06]} 33. Rxg6+ Kf8 34. Rh6 {[%emt 0:00:
04]} 1-0

[Event "GER-ch Blitz 2019"]
[Site "Magdeburg"]
[Date "2019.05.25"]
[Round "29.7"]
[White "Carow, Johannes"]
[Black "Heidrich, Manfred"]
[Result "1-0"]
[ECO "A04"]
[WhiteElo "2445"]
[BlackElo "2351"]
[Annotator "ChessBase"]
[PlyCount "101"]
[EventDate "2019.05.25"]
[EventType "tourn"]
[EventCountry "GER"]
[Tiebreak "Number of wins+Number of black wins"]
[SourceTitle "playchess.com"]
[Source "ChessBase"]
[SourceQuality "1"]
[TimeControl "180+2"]

1. Nf3 {[%emt 0:00:00]} f5 {[%emt 0:00:01]} 2. c4 {[%emt 0:00:12]} Nf6 {
[%emt 0:00:03]} 3. g3 {[%emt 0:00:02]} g6 {[%emt 0:00:01]} 4. Bg2 {[%emt 0:00:
01]} Bg7 {[%emt 0:00:01]} 5. O-O {[%emt 0:00:01]} d6 {[%emt 0:00:02]} 6. d4 {
[%emt 0:00:02]} O-O {[%emt 0:00:01]} 7. Nc3 {[%emt 0:00:02]} Qe8 {[%emt 0:00:
04]} 8. b3 {[%emt 0:00:01]} e5 {[%emt 0:00:08]} 9. dxe5 {[%emt 0:00:02]} dxe5 {
[%emt 0:00:01]} 10. e4 {[%emt 0:00:02]} Nc6 {[%emt 0:00:03]} 11. Nd5 {[%emt 0:
00:26]} Rf7 {[%emt 0:00:04]} 12. Ng5 {[%emt 0:00:44]} Rd7 {[%emt 0:00:01]} 13.
exf5 {[%emt 0:00:19]} gxf5 {[%emt 0:00:03]} 14. Bb2 {[%emt 0:00:11]} h6 {
[%emt 0:00:41]} 15. Nxf6+ {[%emt 0:00:14]} Bxf6 {[%emt 0:00:02]} 16. Bd5+ {
[%emt 0:00:01]} Kg7 {[%emt 0:00:05]} 17. Nf3 {[%emt 0:00:03]} Qe7 {[%emt 0:00:
43]} 18. Re1 {[%emt 0:00:06]} e4 {[%emt 0:00:03]} 19. Nh4 {[%emt 0:00:09]} Rd6
{[%emt 0:00:25]} 20. Ba3 {[%emt 0:00:18]} Ne5 {[%emt 0:00:24]} 21. Bxd6 {
[%emt 0:00:06]} Qxd6 {[%emt 0:00:04]} 22. Kh1 {[%emt 0:00:27]} c6 {[%emt 0:00:
09]} 23. Bxe4 {[%emt 0:00:04]} Qxd1 {[%emt 0:00:03]} 24. Nxf5+ {[%emt 0:00:05]}
Bxf5 {[%emt 0:00:01]} 25. Raxd1 {[%emt 0:00:01]} Bg4 {[%emt 0:00:18]} 26. Rd6 {
[%emt 0:00:04]} Rf8 {[%emt 0:00:07]} 27. Bg2 {[%emt 0:00:03]} Nf3 {[%emt 0:00:
04]} 28. Re4 {[%emt 0:00:03]} Bh5 {[%emt 0:00:11]} 29. Rd7+ {[%emt 0:00:03]}
Kg8 {[%emt 0:00:02]} 30. Rxb7 {[%emt 0:00:03]} Ng5 {[%emt 0:00:01]} 31. Re1 {
[%emt 0:00:01]} Bc3 {[%emt 0:00:02]} 32. Rf1 {[%emt 0:00:02]} Bd4 {[%emt 0:00:
01]} 33. f4 {[%emt 0:00:01]} Nh7 {[%emt 0:00:02]} 34. Bxc6 {[%emt 0:00:01]} Rd8
{[%emt 0:00:01]} 35. Bd5+ {[%emt 0:00:01]} Kh8 {[%emt 0:00:01]} 36. h3 {
[%emt 0:00:02]} Bg6 {[%emt 0:00:02]} 37. f5 {[%emt 0:00:02]} Be8 {[%emt 0:00:
01]} 38. g4 {[%emt 0:00:02]} Ng5 {[%emt 0:00:01]} 39. Bg2 {[%emt 0:00:01]} Rc8
{[%emt 0:00:03]} 40. Rd1 {[%emt 0:00:01]} Bf6 {[%emt 0:00:02]} 41. Rd6 {
[%emt 0:00:01]} Bg7 42. Rxa7 {[%emt 0:00:02]} Bf8 {[%emt 0:00:03]} 43. Rf6 {
[%emt 0:00:01]} Bg7 {[%emt 0:00:01]} 44. Rb6 {[%emt 0:00:01]} Rd8 {[%emt 0:00:
01]} 45. Bd5 {[%emt 0:00:06]} Bd7 {[%emt 0:00:04]} 46. Rd6 {[%emt 0:00:01]} Re8
{[%emt 0:00:02]} 47. Raxd7 {[%emt 0:00:03]} Re2 {[%emt 0:00:02]} 48. Rd8+ {
[%emt 0:00:01]} Kh7 {[%emt 0:00:01]} 49. Bg8+ {[%emt 0:00:02]} Kh8 {[%emt 0:00:
01]} 50. Bf7+ {[%emt 0:00:01]} Bf8 {[%emt 0:00:00]} 51. Rxf8+ {[%emt 0:00:01]}
1-0

[Event "GER-ch Blitz 2019"]
[Site "Magdeburg"]
[Date "2019.05.25"]
[Round "29.8"]
[White "Kirchner, Thomas"]
[Black "Schneider, Ilja"]
[Result "0-1"]
[ECO "B00"]
[WhiteElo "2311"]
[BlackElo "2494"]
[Annotator "ChessBase"]
[PlyCount "94"]
[EventDate "2019.05.25"]
[EventType "tourn"]
[EventCountry "GER"]
[Tiebreak "Number of wins+Number of black wins"]
[SourceTitle "playchess.com"]
[Source "ChessBase"]
[SourceQuality "1"]
[TimeControl "180+2"]

1. e4 {[%emt 0:00:00]} Nc6 {[%emt 0:00:01]} 2. Bc4 {[%emt 0:00:02]} Nf6 {
[%emt 0:00:01]} 3. d3 {[%emt 0:00:01]} d5 {[%emt 0:00:01]} 4. exd5 {[%emt 0:00:
01]} Nxd5 {[%emt 0:00:01]} 5. Nf3 {[%emt 0:00:01]} Bg4 {[%emt 0:00:03]} 6. h3 {
[%emt 0:00:03]} Bh5 {[%emt 0:00:01]} 7. O-O {[%emt 0:00:04]} e6 {[%emt 0:00:01]
} 8. Re1 {[%emt 0:00:02]} Be7 {[%emt 0:00:02]} 9. c3 {[%emt 0:00:10]} O-O {
[%emt 0:00:02]} 10. Bb3 {[%emt 0:00:01]} Bd6 {[%emt 0:00:16]} 11. d4 {[%emt 0:
00:01]} Nce7 {[%emt 0:00:11]} 12. Nbd2 {[%emt 0:00:04]} c6 {[%emt 0:00:09]} 13.
Ne4 {[%emt 0:00:01]} Bc7 {[%emt 0:00:01]} 14. Ng3 {[%emt 0:00:03]} Bxg3 {
[%emt 0:00:07]} 15. fxg3 {[%emt 0:00:01]} Qc7 {[%emt 0:00:02]} 16. g4 {[%emt 0:
00:06]} Bg6 {[%emt 0:00:01]} 17. Ne5 {[%emt 0:00:01]} c5 {[%emt 0:00:07]} 18.
Nxg6 {[%emt 0:00:12]} Nxg6 {[%emt 0:00:05]} 19. Qf3 {[%emt 0:00:23]} Rad8 {
[%emt 0:00:11]} 20. Bg5 {[%emt 0:00:13]} Rd7 {[%emt 0:00:04]} 21. Rad1 {
[%emt 0:00:01]} h6 {[%emt 0:00:02]} 22. Bc1 {[%emt 0:00:05]} Rfd8 {[%emt 0:00:
01]} 23. dxc5 {[%emt 0:00:07]} Qxc5+ {[%emt 0:00:01]} 24. Kh1 {[%emt 0:00:01]}
b5 {[%emt 0:00:12]} 25. a3 {[%emt 0:00:02]} a5 {[%emt 0:00:01]} 26. Bc2 {
[%emt 0:00:05]} Nge7 {[%emt 0:00:05]} 27. Rd4 {[%emt 0:00:25]} b4 {[%emt 0:00:
05]} 28. axb4 {[%emt 0:00:06]} axb4 {[%emt 0:00:01]} 29. Red1 {[%emt 0:00:16]}
bxc3 {[%emt 0:00:04]} 30. bxc3 {[%emt 0:00:02]} Nc6 {[%emt 0:00:11]} 31. R4d2 {
[%emt 0:00:04]} Ne5 {[%emt 0:00:43]} 32. Qe4 {[%emt 0:00:01]} Nxc3 {[%emt 0:00:
21]} 33. Qh7+ {[%emt 0:00:20]} Kf8 {[%emt 0:00:00]} 34. Rxd7 {[%emt 0:00:09]}
Rxd7 {[%emt 0:00:01]} 35. Rxd7 {[%emt 0:00:06]} Nxd7 {[%emt 0:00:01]} 36. Qh8+
{[%emt 0:00:01]} Ke7 {[%emt 0:00:01]} 37. Qxg7 {[%emt 0:00:01]} Ne2 {[%emt 0:
00:03]} 38. Be3 {[%emt 0:00:51]} Qxe3 {[%emt 0:00:01]} 39. Qa1 {[%emt 0:00:01]}
Ne5 {[%emt 0:00:09]} 40. Ba4 {[%emt 0:00:02]} Qf4 {[%emt 0:00:16]} 41. Bb5 {
[%emt 0:00:03]} Ng3+ {[%emt 0:00:13]} 42. Kg1 {[%emt 0:00:01]} Kf6 {[%emt 0:00:
04]} 43. h4 {[%emt 0:00:02]} Qxg4 {[%emt 0:00:02]} 44. h5 {[%emt 0:00:02]} Qh4
{[%emt 0:00:02]} 45. Kf2 {[%emt 0:00:02]} Nf5+ {[%emt 0:00:02]} 46. Kg1 {
[%emt 0:00:01]} Qd4+ {[%emt 0:00:01]} 47. Qxd4 {[%emt 0:00:02]} Nxd4 {[%emt 0:
00:01]} 0-1

[Event "GER-ch Blitz 2019"]
[Site "Magdeburg"]
[Date "2019.05.25"]
[Round "29.9"]
[White "Krause, Benedict"]
[Black "Kopylov, Michael"]
[Result "1/2-1/2"]
[ECO "B01"]
[WhiteElo "2434"]
[BlackElo "2413"]
[Annotator "NA"]
[PlyCount "29"]
[EventDate "2019.05.25"]
[EventType "tourn"]
[EventCountry "GER"]
[Tiebreak "Number of wins+Number of black wins"]
[SourceTitle "playchess.com"]
[Source "ChessBase"]
[SourceQuality "1"]
[TimeControl "180+2"]

1. e4 {[%emt 0:00:00]} d5 {[%emt 0:00:00]} 2. exd5 Qxd5 {[%emt 0:00:00]} 3. Nf3
{[%emt 0:00:01]} Bg4 {[%emt 0:00:00]} 4. Be2 {[%emt 0:00:01]} Nc6 {[%emt 0:00:
01]} 5. d4 {[%emt 0:00:02]} O-O-O {[%emt 0:00:03]} 6. Be3 {[%emt 0:00:02]} e5 {
[%emt 0:00:01]} 7. c4 Qa5+ 8. Bd2 {[%emt 0:00:03]} Bb4 {[%emt 0:00:02]} 9. d5 {
[%emt 0:00:01]} Bxf3 {[%emt 0:00:01]} 10. Bxf3 {[%emt 0:00:01]} Nd4 {[%emt 0:
00:01]} 11. Nc3 {[%emt 0:00:05]} Qa6 {[%emt 0:00:00]} 12. b3 {[%emt 0:00:14]}
Qa5 {[%emt 0:00:01]} 13. Rc1 {[%emt 0:00:50]} Nf6 {[%emt 0:00:02]} 14. O-O {
[%emt 0:00:03]} Rhe8 {[%emt 0:00:00]} 15. Be1 {[%emt 0:00:31]} 1/2-1/2

[Event "GER-ch Blitz 2019"]
[Site "Magdeburg"]
[Date "2019.05.25"]
[Round "29.10"]
[White "Ehmann, Thilo"]
[Black "Hebbinghaus, Holger"]
[Result "1-0"]
[ECO "B02"]
[WhiteElo "2291"]
[BlackElo "2310"]
[Annotator "NA"]
[PlyCount "88"]
[EventDate "2019.05.25"]
[EventType "tourn"]
[EventCountry "GER"]
[Tiebreak "Number of wins+Number of black wins"]
[SourceTitle "playchess.com"]
[Source "ChessBase"]
[SourceQuality "1"]
[TimeControl "180+2"]

1. e4 {[%emt 0:00:00]} Nf6 {[%emt 0:00:00]} 2. Nc3 {[%emt 0:00:02]} d5 {
[%emt 0:00:01]} 3. e5 {[%emt 0:00:00]} Nfd7 {[%emt 0:00:01]} 4. d4 {[%emt 0:00:
09]} c5 {[%emt 0:00:01]} 5. f4 {[%emt 0:00:04]} cxd4 {[%emt 0:00:06]} 6. Nce2 {
[%emt 0:00:08]} Nc6 {[%emt 0:00:04]} 7. Nf3 {[%emt 0:00:02]} Ndb8 {[%emt 0:00:
03]} 8. Nexd4 {[%emt 0:00:03]} Bg4 {[%emt 0:00:06]} 9. e6 {[%emt 0:00:12]} fxe6
{[%emt 0:00:12]} 10. Be2 {[%emt 0:00:06]} g6 {[%emt 0:00:40]} 11. Ng5 {[%emt 0:
00:28]} Bxe2 {[%emt 0:00:12]} 12. Nxe2 {[%emt 0:00:01]} Qd6 {[%emt 0:00:13]}
13. h4 {[%emt 0:00:28]} h6 {[%emt 0:00:21]} 14. Nf3 {[%emt 0:00:03]} Nd7 {
[%emt 0:00:16]} 15. Qd3 {[%emt 0:00:08]} e5 {[%emt 0:00:07]} 16. fxe5 {[%emt 0:
00:02]} Ncxe5 {[%emt 0:00:03]} 17. Nxe5 {[%emt 0:00:02]} Nxe5 {[%emt 0:00:02]}
18. Qg3 {[%emt 0:00:12]} Nf7 {[%emt 0:00:07]} 19. Bf4 {[%emt 0:00:14]} e5 {
[%emt 0:00:02]} 20. Bd2 {[%emt 0:00:02]} Bg7 {[%emt 0:00:09]} 21. a3 {[%emt 0:
00:12]} a5 {[%emt 0:00:05]} 22. O-O {[%emt 0:00:09]} O-O {[%emt 0:00:02]} 23.
Kh1 {[%emt 0:00:04]} b6 {[%emt 0:00:09]} 24. Bc3 {[%emt 0:00:12]} Nh8 {[%emt 0:
00:12]} 25. Nd4 {[%emt 0:00:12]} Rxf1+ {[%emt 0:00:04]} 26. Rxf1 {[%emt 0:00:
01]} Rf8 {[%emt 0:00:03]} 27. Re1 {[%emt 0:00:00]} Qf6 {[%emt 0:00:05]} 28. Nf3
{[%emt 0:00:05]} Qf4 {[%emt 0:00:00]} 29. Qxf4 {[%emt 0:00:09]} exf4 {[%emt 0:
00:02]} 30. Bxg7 {[%emt 0:00:03]} Kxg7 {[%emt 0:00:00]} 31. Re5 {[%emt 0:00:04]
} Rd8 {[%emt 0:00:09]} 32. Nd4 {[%emt 0:00:02]} Rd6 {[%emt 0:00:05]} 33. Re7+ {
[%emt 0:00:03]} Nf7 {[%emt 0:00:03]} 34. c3 {[%emt 0:00:03]} Kf6 {[%emt 0:00:
02]} 35. Re8 {[%emt 0:00:02]} g5 {[%emt 0:00:03]} 36. hxg5+ {[%emt 0:00:01]}
hxg5 {[%emt 0:00:01]} 37. Kg1 {[%emt 0:00:01]} g4 {[%emt 0:00:02]} 38. Rg8 {
[%emt 0:00:02]} g3 {[%emt 0:00:05]} 39. Kf1 {[%emt 0:00:05]} Ne5 {[%emt 0:00:
04]} 40. Rf8+ {[%emt 0:00:02]} Kg5 {[%emt 0:00:07]} 41. Rf5+ {[%emt 0:00:01]}
Kg4 {[%emt 0:00:05]} 42. Rxe5 {[%emt 0:00:01]} Rh6 {[%emt 0:00:03]} 43. Nf3 {
[%emt 0:00:03]} Rh1+ {[%emt 0:00:03]} 44. Ng1 {[%emt 0:00:01]} Rh8 1-0

[Event "GER-ch Blitz 2019"]
[Site "Magdeburg"]
[Date "2019.05.25"]
[Round "29.11"]
[White "Barzen, Pascal"]
[Black "Braeuer, Franz"]
[Result "1/2-1/2"]
[ECO "B23"]
[WhiteElo "2292"]
[BlackElo "2445"]
[Annotator "ChessBase"]
[PlyCount "101"]
[EventDate "2019.05.25"]
[EventType "tourn"]
[EventCountry "GER"]
[Tiebreak "Number of wins+Number of black wins"]
[SourceTitle "playchess.com"]
[Source "ChessBase"]
[SourceQuality "1"]
[TimeControl "180+2"]

1. e4 {[%emt 0:00:00]} c5 {[%emt 0:00:00]} 2. Nc3 {[%emt 0:00:02]} e6 {[%emt 0:
00:00]} 3. g3 {[%emt 0:00:01]} Nc6 {[%emt 0:00:05]} 4. Bg2 {[%emt 0:00:00]} g6
5. d3 Bg7 {[%emt 0:00:04]} 6. f4 {[%emt 0:00:02]} Nge7 {[%emt 0:00:04]} 7. Nf3
{[%emt 0:00:01]} d5 {[%emt 0:00:02]} 8. O-O {[%emt 0:00:04]} O-O {[%emt 0:00:
01]} 9. e5 {[%emt 0:00:02]} f6 {[%emt 0:00:17]} 10. exf6 {[%emt 0:00:03]} Bxf6
{[%emt 0:00:01]} 11. Re1 {[%emt 0:00:03]} Qd6 {[%emt 0:00:01]} 12. Be3 {
[%emt 0:00:12]} Bd7 {[%emt 0:00:10]} 13. Nb5 {[%emt 0:00:04]} Qb8 {[%emt 0:00:
04]} 14. Bxc5 {[%emt 0:00:02]} a6 15. Nbd4 {[%emt 0:00:14]} Nd8 {[%emt 0:00:55]
} 16. Ne5 {[%emt 0:00:06]} Be8 {[%emt 0:00:02]} 17. Ng4 {[%emt 0:00:07]} Bxd4+
{[%emt 0:00:10]} 18. Bxd4 {[%emt 0:00:01]} Nf5 {[%emt 0:00:00]} 19. Be5 {
[%emt 0:00:05]} Qa7+ {[%emt 0:00:01]} 20. d4 {[%emt 0:00:05]} Nc6 {[%emt 0:00:
03]} 21. c3 {[%emt 0:00:08]} Nxe5 22. fxe5 {[%emt 0:00:05]} Qb6 {[%emt 0:00:07]
} 23. Qd2 {[%emt 0:00:05]} a5 {[%emt 0:00:07]} 24. Nf6+ {[%emt 0:00:04]} Kg7 {
[%emt 0:00:06]} 25. g4 {[%emt 0:00:01]} Ne7 {[%emt 0:00:10]} 26. Re3 {[%emt 0:
00:05]} h6 {[%emt 0:00:11]} 27. Rh3 {[%emt 0:00:04]} g5 {[%emt 0:00:02]} 28.
Rf1 {[%emt 0:00:28]} Bb5 {[%emt 0:00:09]} 29. Nh5+ {[%emt 0:00:10]} Kh8 {
[%emt 0:00:00]} 30. Rf6 {[%emt 0:00:04]} Ng8 {[%emt 0:00:02]} 31. Qc2 {[%emt 0:
00:26]} Qc7 {[%emt 0:00:14]} 32. Rxe6 {[%emt 0:00:12]} Qf7 {[%emt 0:00:01]} 33.
Rf6 {[%emt 0:00:00]} Nxf6 {[%emt 0:00:04]} 34. Nxf6 {[%emt 0:00:01]} Qg7 {
[%emt 0:00:07]} 35. Qf5 {[%emt 0:00:05]} Ra6 {[%emt 0:00:06]} 36. Bxd5 {
[%emt 0:00:33]} Be2 {[%emt 0:00:08]} 37. Re3 {[%emt 0:00:14]} Bd1 {[%emt 0:00:
10]} 38. c4 {[%emt 0:00:10]} Ba4 {[%emt 0:00:03]} 39. c5 {[%emt 0:00:02]} Bc6 {
[%emt 0:00:01]} 40. Bxc6 {[%emt 0:00:03]} Rxc6 {[%emt 0:00:01]} 41. Rf3 {
[%emt 0:00:02]} b6 {[%emt 0:00:01]} 42. Qe4 {[%emt 0:00:01]} Rcc8 {[%emt 0:00:
11]} 43. c6 {[%emt 0:00:01]} Qf7 {[%emt 0:00:10]} 44. d5 {[%emt 0:00:01]} Rcd8
{[%emt 0:00:05]} 45. d6 {[%emt 0:00:03]} Rc8 {[%emt 0:00:02]} 46. c7 {[%emt 0:
00:01]} Rxc7 {[%emt 0:00:03]} 47. dxc7 {[%emt 0:00:01]} Qxc7 {[%emt 0:00:00]}
48. Qg6 {[%emt 0:00:04]} Qc1+ {[%emt 0:00:04]} 49. Rf1 {[%emt 0:00:04]} Qe3+ {
[%emt 0:00:00]} 50. Rf2 {[%emt 0:00:01]} Qe1+ {[%emt 0:00:01]} 51. Kg2 {
[%emt 0:00:01]} 1/2-1/2

[Event "GER-ch Blitz 2019"]
[Site "Magdeburg"]
[Date "2019.05.25"]
[Round "29.12"]
[White "Buhmann, Rainer"]
[Black "Heistermann, Till"]
[Result "1-0"]
[ECO "A57"]
[WhiteElo "2573"]
[BlackElo "2181"]
[Annotator "ChessBase"]
[PlyCount "99"]
[EventDate "2019.05.25"]
[EventType "tourn"]
[EventCountry "GER"]
[Tiebreak "Number of wins+Number of black wins"]
[SourceTitle "playchess.com"]
[Source "ChessBase"]
[SourceQuality "1"]
[TimeControl "180+2"]

1. d4 {[%emt 0:00:00]} Nf6 {[%emt 0:00:00]} 2. c4 {[%emt 0:00:00]} c5 {[%emt 0:
00:00]} 3. d5 {[%emt 0:00:01]} b5 {[%emt 0:00:01]} 4. cxb5 {[%emt 0:00:01]} a6
{[%emt 0:00:00]} 5. b6 {[%emt 0:00:01]} d6 {[%emt 0:00:01]} 6. Nc3 {[%emt 0:00:
02]} g6 {[%emt 0:00:02]} 7. e4 {[%emt 0:00:01]} Nbd7 {[%emt 0:00:02]} 8. Nf3 {
[%emt 0:00:03]} Bg7 {[%emt 0:00:00]} 9. a4 {[%emt 0:00:03]} a5 {[%emt 0:00:04]}
10. Bb5 {[%emt 0:00:02]} O-O {[%emt 0:00:05]} 11. O-O {[%emt 0:00:03]} Nxb6 {
[%emt 0:00:05]} 12. Nd2 {[%emt 0:00:12]} Bd7 {[%emt 0:00:09]} 13. Qc2 {[%emt 0:
00:08]} Bxb5 {[%emt 0:00:02]} 14. Nxb5 {[%emt 0:00:02]} Ne8 {[%emt 0:00:05]}
15. Rb1 {[%emt 0:00:11]} Nc7 {[%emt 0:00:01]} 16. Na3 {[%emt 0:00:01]} Na6 {
[%emt 0:00:02]} 17. b3 {[%emt 0:00:06]} Nb4 {[%emt 0:00:01]} 18. Qd1 {[%emt 0:
00:01]} Nd3 {[%emt 0:00:17]} 19. Ndc4 {[%emt 0:00:10]} Nxc1 {[%emt 0:00:02]}
20. Rxc1 {[%emt 0:00:01]} Nxc4 {[%emt 0:00:06]} 21. Nxc4 {[%emt 0:00:03]} Qc7 {
[%emt 0:00:03]} 22. Qd3 {[%emt 0:00:04]} Rab8 {[%emt 0:00:02]} 23. Rb1 {
[%emt 0:00:08]} Rb7 {[%emt 0:00:03]} 24. g3 {[%emt 0:00:07]} Rfb8 {[%emt 0:00:
01]} 25. h4 {[%emt 0:00:04]} h5 {[%emt 0:00:17]} 26. Kg2 {[%emt 0:00:01]} Ra8 {
[%emt 0:00:28]} 27. f4 {[%emt 0:00:03]} Qd7 {[%emt 0:00:02]} 28. f5 {[%emt 0:
00:02]} Qe8 {[%emt 0:00:17]} 29. Rf3 {[%emt 0:00:02]} Bf6 {[%emt 0:00:07]} 30.
Re1 {[%emt 0:00:07]} Kg7 {[%emt 0:00:06]} 31. Rf4 {[%emt 0:00:08]} g5 {[%emt 0:
00:18]} 32. hxg5 {[%emt 0:00:02]} Bxg5 {[%emt 0:00:01]} 33. Rf3 {[%emt 0:00:01]
} f6 {[%emt 0:00:03]} 34. Rh1 {[%emt 0:00:07]} Rbb8 {[%emt 0:00:16]} 35. Qc3 {
[%emt 0:00:03]} Rb4 {[%emt 0:00:02]} 36. Kf2 {[%emt 0:00:13]} Qf7 {[%emt 0:00:
09]} 37. Ke2 {[%emt 0:00:02]} Rh8 {[%emt 0:00:30]} 38. Kd1 {[%emt 0:00:06]} h4
{[%emt 0:00:01]} 39. gxh4 {[%emt 0:00:03]} Rxh4 {[%emt 0:00:02]} 40. Rxh4 {
[%emt 0:00:01]} Bxh4 {[%emt 0:00:01]} 41. Rh3 {[%emt 0:00:03]} Qh5+ {[%emt 0:
00:16]} 42. Qf3 {[%emt 0:00:03]} Qxf3+ {[%emt 0:00:01]} 43. Rxf3 {[%emt 0:00:
01]} Kh6 {[%emt 0:00:04]} 44. Kc2 {[%emt 0:00:18]} Kg5 {[%emt 0:00:01]} 45. Rh3
{[%emt 0:00:03]} Kg4 {[%emt 0:00:02]} 46. Rh1 {[%emt 0:00:01]} Bg5 {[%emt 0:00:
04]} 47. Rh7 {[%emt 0:00:02]} Kf3 48. Rxe7 Bf4 49. Re6 Be5 50. Nxd6 1-0

[Event "GER-ch Blitz 2019"]
[Site "Magdeburg"]
[Date "2019.05.25"]
[Round "29.13"]
[White "Braeuning, Rudolf Wilhelm"]
[Black "Baskin, Robert"]
[Result "0-1"]
[ECO "B22"]
[WhiteElo "2285"]
[BlackElo "2398"]
[Annotator "NA"]
[PlyCount "70"]
[EventDate "2019.05.25"]
[EventType "tourn"]
[EventCountry "GER"]
[Tiebreak "Number of wins+Number of black wins"]
[SourceTitle "playchess.com"]
[Source "ChessBase"]
[SourceQuality "1"]
[TimeControl "180+2"]

1. e4 {[%emt 0:00:00]} c5 {[%emt 0:00:00]} 2. c3 {[%emt 0:00:01]} d5 {[%emt 0:
00:02]} 3. exd5 {[%emt 0:00:02]} Qxd5 {[%emt 0:00:02]} 4. d4 {[%emt 0:00:01]}
Nf6 {[%emt 0:00:01]} 5. Nf3 {[%emt 0:00:01]} Nc6 {[%emt 0:00:00]} 6. Be3 {
[%emt 0:00:05]} cxd4 {[%emt 0:00:02]} 7. cxd4 {[%emt 0:00:01]} e6 {[%emt 0:00:
01]} 8. Nc3 {[%emt 0:00:01]} Qd6 {[%emt 0:00:00]} 9. a3 {[%emt 0:00:01]} Be7 {
[%emt 0:00:02]} 10. Bd3 {[%emt 0:00:01]} O-O {[%emt 0:00:01]} 11. O-O {[%emt 0:
00:01]} b6 {[%emt 0:00:01]} 12. Re1 {[%emt 0:00:01]} Bb7 {[%emt 0:00:02]} 13.
Bc2 {[%emt 0:00:01]} Rad8 {[%emt 0:00:05]} 14. Qd3 {[%emt 0:00:05]} Qb8 {
[%emt 0:00:05]} 15. Rad1 {[%emt 0:00:12]} g6 {[%emt 0:00:03]} 16. Bg5 {[%emt 0:
00:33]} Nd5 {[%emt 0:00:11]} 17. Ne4 {[%emt 0:00:26]} Bxg5 {[%emt 0:00:15]} 18.
Nexg5 {[%emt 0:00:06]} Nf4 {[%emt 0:00:36]} 19. Qe3 {[%emt 0:00:13]} Ne7 {
[%emt 0:00:01]} 20. Bb3 {[%emt 0:00:21]} Nf5 {[%emt 0:00:07]} 21. Qd2 {[%emt 0:
00:25]} Rd7 {[%emt 0:00:23]} 22. Re5 {[%emt 0:00:06]} Nd5 {[%emt 0:00:24]} 23.
Ree1 {[%emt 0:00:18]} Qf4 {[%emt 0:00:11]} 24. Ne5 {[%emt 0:00:10]} Rc7 {
[%emt 0:00:10]} 25. Qxf4 {[%emt 0:00:09]} Nxf4 {[%emt 0:00:01]} 26. g3 {
[%emt 0:00:01]} Nd5 {[%emt 0:00:07]} 27. Ne4 {[%emt 0:00:03]} Kg7 {[%emt 0:00:
08]} 28. h4 {[%emt 0:00:06]} Rd8 {[%emt 0:00:10]} 29. Bxd5 {[%emt 0:00:12]}
Bxd5 {[%emt 0:00:02]} 30. Nc3 {[%emt 0:00:04]} Bb3 {[%emt 0:00:01]} 31. Rd3 {
[%emt 0:00:03]} Rxd4 {[%emt 0:00:01]} 32. Rxd4 Nxd4 {[%emt 0:00:01]} 33. Kg2 {
[%emt 0:00:11]} f6 {[%emt 0:00:09]} 34. Nd3 {[%emt 0:00:03]} Bc4 {[%emt 0:00:
06]} 35. Nc1 {[%emt 0:00:01]} Nb5 {[%emt 0:00:04]} 0-1